bitfinex/quotes_SOLUSD_20241110
["timestamp","ask_amount","ask_price","bid_price","bid_amount"]
[1731207941890,25.84758863,202.0,201.93,25.84758863]
[1731207942042,25.84758863,201.99,201.92,25.84758863]
[1731207942959,25.84758863,201.99,201.93,25.84758863]
[1731207943952,25.84758863,202.02,201.95,25.84758863]
[1731207944167,25.84758863,202.02,201.95,31.90498863]
[1731207944756,25.84758863,202.01,201.95,6.0574]
[1731207944961,25.84758863,201.98,201.95,6.0574]
[1731207945256,25.84758863,201.96,201.9,6.0574]
[1731207945463,25.84758863,201.94,201.9,6.0574]
[1731207945646,25.84758863,201.92,201.85,31.90498863]
[1731207945959,25.84758863,201.93,201.86,25.84758863]
[1731207946339,25.84758863,201.92,201.85,31.90498863]
[1731207946535,25.84758863,201.94,201.87,25.84758863]
[1731207946963,25.84758863,202.0,201.86,20.0]
[1731207946964,25.84758863,201.92,201.86,20.0]
[1731207948248,25.84758863,201.92,201.85,31.90498863]
[1731207948645,25.84758863,201.92,201.86,20.0]
[1731207948841,3.80592122,202.0,201.91,25.84758863]
[1731207949048,25.84758863,202.0,201.93,25.84758863]
[1731207949262,25.84758863,201.99,201.93,25.84758863]
[1731207949583,25.84758863,201.99,201.92,25.84758863]
[1731207950447,25.84758863,202.0,201.93,25.84758863]
[1731207950765,25.84758863,202.03,201.96,31.90498863]
[1731207951154,25.84758863,202.03,201.96,6.0574]
[1731207951351,25.84758863,202.02,201.96,6.0574]
[1731207952074,25.84758863,202.01,201.96,6.0574]
[1731207952369,25.84758863,202.02,201.96,6.0574]
[1731207953567,25.84758863,202.04,201.97,25.84758863]
[1731207953869,25.84758863,202.07,202.0,25.84758863]
[1731207954257,30.89631123,202.08,202.01,25.84758863]
[1731207954475,30.89631123,202.08,202.0,25.84758863]
[1731207954769,25.84758863,202.08,202.0,25.84758863]
[1731207955263,25.84758863,202.08,202.01,25.84758863]
[1731207955463,25.84758863,202.07,202.0,25.84758863]
[1731207955954,25.84758863,202.08,202.01,25.84758863]
[1731207956951,25.84758863,202.09,202.02,25.84758863]
[1731207957160,25.84758863,202.12,202.05,25.84758863]
[1731207957454,25.84758863,202.13,202.05,25.84758863]
[1731207958461,25.84758863,202.12,202.05,25.84758863]
[1731207958678,25.84758863,202.12,202.04,25.84758863]
[1731207958975,25.84758863,202.11,202.04,25.84758863]
[1731207959268,25.34758863,202.11,202.04,25.84758863]
[1731207959969,25.84758863,202.09,202.03,16.2955]
[1731207960160,23.776884,202.16,202.03,16.2955]
[1731207960161,25.84758863,202.08,202.03,16.2955]
[1731207960669,25.84758863,202.09,202.03,16.2955]
[1731207961056,25.84758863,202.09,202.03,42.14308863]
[1731207961370,25.84758863,202.13,202.06,32.38468863]
[1731207961556,25.84758863,202.13,202.06,6.5371]
[1731207961752,25.84758863,202.12,202.06,6.5371]
[1731207962462,25.84758863,202.13,202.07,20.0]
[1731207963372,8.87111903,202.19,202.07,20.0]
[1731207963373,25.84758863,202.15,202.08,25.84758863]
[1731207963550,25.84758863,202.17,202.1,25.84758863]
[1731207964161,25.84758863,202.16,202.09,25.84758863]
[1731207964364,25.84758863,202.18,202.11,25.84758863]
[1731207964556,25.84758863,202.2,202.13,25.84758863]
[1731207964746,15.47,202.26,202.1,25.84758863]
[1731207964747,25.84758863,202.17,202.1,25.84758863]
[1731207964954,25.84758863,202.15,202.09,20.0]
[1731207965251,25.84758863,202.14,202.09,20.0]
[1731207965773,25.84758863,202.14,202.08,20.0]
[1731207965978,25.84758863,202.15,202.08,25.84758863]
[1731207966587,25.84758863,202.16,202.09,25.84758863]
[1731207966749,25.84758863,202.15,202.08,25.84758863]
[1731207967073,25.84758863,202.16,202.09,25.84758863]
[1731207967279,25.84758863,202.15,202.08,25.84758863]
[1731207967582,25.84758863,202.1,202.06,6.5371]
[1731207967786,0.1,202.16,202.06,6.5371]
[1731207968075,0.1,202.18,202.06,6.5371]
[1731207968280,43.776884,202.19,202.06,6.5371]
[1731207968650,0.22549,202.18,202.06,6.5371]
[1731207968970,25.84758863,202.07,202.06,6.5371]
[1731207969280,25.84758863,202.09,202.06,6.5371]
[1731207969573,25.84758863,202.08,202.06,6.5371]
[1731207971960,25.84758863,202.07,202.06,6.5371]
[1731207972271,25.84758863,202.08,202.06,6.5371]
[1731207972460,25.84758863,202.09,202.06,6.5371]
[1731207972868,25.84758863,202.07,202.06,6.5371]
[1731207973068,25.84758863,202.07,202.03,16.2955]
[1731207973581,25.84758863,202.05,202.01,6.5371]
[1731207974063,25.84758863,202.07,202.01,32.38468863]
[1731207974458,25.84758863,202.08,202.01,32.38468863]
[1731207974665,25.84758863,202.09,202.03,25.84758863]
[1731207975058,25.84758863,202.09,202.02,25.84758863]
[1731207975975,25.84758863,202.08,202.01,32.38468863]
[1731207976159,25.84758863,202.09,202.02,25.84758863]
[1731207976358,25.84758863,202.08,202.01,32.38468863]
[1731207976563,25.84758863,202.06,202.01,6.5371]
[1731207976759,25.84758863,202.05,202.01,6.5371]
[1731207977175,25.84758863,202.06,202.01,6.5371]
[1731207977869,25.84758863,202.09,202.02,25.84758863]
[1731207978073,25.84758863,202.1,202.03,25.84758863]
[1731207978285,25.84758863,202.07,202.01,32.38468863]
[1731207978484,25.84758863,202.07,202.01,6.5371]
[1731207978785,25.84758863,202.07,202.01,32.38468863]
[1731207978959,25.84758863,202.08,202.01,32.38468863]
[1731207979360,16.14953623,202.08,202.01,22.68663623]
[1731207981503,16.14953623,202.1,202.03,16.14953623]
[1731207981690,16.14953623,202.1,202.04,16.14953623]
[1731207982299,16.14953623,202.12,202.06,16.14953623]
[1731207982501,16.14953623,202.12,202.05,16.14953623]
[1731207982703,16.14953623,202.12,202.06,20.0]
[1731207983815,16.14953623,202.13,202.06,36.14953623]
[1731207984207,16.14953623,202.13,202.07,16.14953623]
[1731207984712,16.14953623,202.13,202.08,20.0]
[1731207985715,16.14953623,202.14,202.07,16.14953623]
[1731207985905,16.14953623,202.13,202.06,16.14953623]
[1731207986111,5.05318544,202.19,202.08,38.27843623]
[1731207986282,16.14953623,202.16,202.1,16.14953623]
[1731207986482,16.14953623,202.15,202.09,20.0]
[1731207988279,16.14953623,202.16,202.09,36.14953623]
[1731207988585,16.14953623,202.16,202.1,16.14953623]
[1731207988791,16.14953623,202.16,202.11,20.0]
[1731207989084,16.14953623,202.16,202.09,16.14953623]
[1731207989386,16.14953623,202.14,202.09,20.0]
[1731207989696,16.14953623,202.1,202.08,6.6021]
[1731207989985,16.14953623,202.09,202.08,6.6021]
[1731207990188,16.14953623,202.12,202.08,6.6021]
[1731207990897,23.776884,202.19,202.08,6.6021]
[1731207990898,16.14953623,202.14,202.08,22.75163623]
[1731207991119,16.14953623,202.14,202.09,20.0]
[1731207991715,16.14953623,202.13,202.09,20.0]
[1731207992887,16.14953623,202.14,202.09,20.0]
[1731207994487,16.14953623,202.15,202.09,20.0]
[1731207994807,23.776884,202.19,202.09,20.0]
[1731207994808,16.14953623,202.16,202.11,20.0]
[1731207994999,16.14953623,202.16,202.1,16.14953623]
[1731207995179,16.14953623,202.16,202.11,20.0]
[1731207995362,16.14953623,202.17,202.11,20.0]
[1731207995782,16.14953623,202.16,202.11,20.0]
[1731207995989,16.14953623,202.12,202.08,6.6021]
[1731207996188,16.14953623,202.12,202.09,20.0]
[1731207996375,23.776884,202.22,202.09,36.14953623]
[1731207996568,16.14953623,202.17,202.11,20.0]
[1731207996977,16.14953623,202.19,202.13,20.0]
[1731207997280,21.20423139,202.21,202.14,16.14953623]
[1731207997486,16.14953623,202.2,202.13,36.14953623]
[1731207998097,16.14953623,202.2,202.15,20.0]
[1731207998285,16.14953623,202.19,202.15,20.0]
[1731207998490,16.14953623,202.16,202.12,16.0544]
[1731207998694,16.14953623,202.15,202.12,16.0544]
[1731207998990,16.14953623,202.16,202.12,16.0544]
[1731207999984,16.14953623,202.19,202.12,32.20393623]
[1731208000185,16.14953623,202.21,202.15,20.0]
[1731208000580,16.14953623,202.22,202.16,6.4495]
[1731208000793,16.14953623,202.23,202.17,36.14953623]
[1731208000994,16.14953623,202.24,202.17,36.14953623]
[1731208001178,5.05358806,202.28,202.2,20.0]
[1731208001384,16.14953623,202.29,202.22,32.20393623]
[1731208001583,16.5072,202.37,202.22,32.20393623]
[1731208001584,16.14953623,202.31,202.25,6.4495]
[1731208001797,16.14953623,202.31,202.25,22.59903623]
[1731208001995,16.14953623,202.32,202.26,20.0]
[1731208002295,16.14953623,202.33,202.26,36.14953623]
[1731208002998,16.14953623,202.33,202.28,20.0]
[1731208003377,21.21075695,202.4,202.25,6.4495]
[1731208003378,16.14953623,202.32,202.25,22.59903623]
[1731208003581,16.14953623,202.32,202.26,20.0]
[1731208004278,16.14953623,202.33,202.26,36.14953623]
[1731208004490,16.14953623,202.33,202.28,20.0]
[1731208005195,16.14953623,202.34,202.28,20.0]
[1731208005382,16.14953623,202.35,202.29,16.14953623]
[1731208005577,16.14953623,202.35,202.28,16.14953623]
[1731208006206,16.14953623,202.32,202.26,20.0]
[1731208006586,16.14953623,202.32,202.25,22.59903623]
[1731208006587,16.14953623,202.27,202.25,6.4495]
[1731208006917,0.1,202.35,202.19,6.4495]
[1731208006918,20.0,202.31,202.19,6.4495]
[1731208007207,16.14953623,202.2,202.19,6.4495]
[1731208008889,16.14953623,202.2,202.1,16.14953623]
[1731208009083,40.12642023,202.3,202.11,16.14953623]
[1731208009084,16.14953623,202.17,202.11,16.14953623]
[1731208009479,16.14953623,202.16,202.09,22.59903623]
[1731208009994,16.14953623,202.15,202.09,6.4495]
[1731208010193,16.14953623,202.12,202.09,6.4495]
[1731208011295,25.82872726,202.12,202.09,6.4495]
[1731208011802,25.82872726,202.13,202.09,6.4495]
[1731208012100,25.82872726,202.14,202.09,6.4495]
[1731208012278,25.82872726,202.15,202.09,6.4495]
[1731208012487,25.82872726,202.16,202.09,32.27822726]
[1731208013496,25.82872726,202.15,202.09,6.4495]
[1731208014511,25.82872726,202.18,202.11,25.82872726]
[1731208014707,25.82872726,202.19,202.12,45.82872726]
[1731208014909,25.82872726,202.18,202.11,25.82872726]
[1731208015093,25.82872726,202.15,202.1,20.0]
[1731208015898,25.82872726,202.14,202.1,20.0]
[1731208016201,25.82872726,202.15,202.1,20.0]
[1731208017311,25.82872726,202.14,202.09,6.4495]
[1731208018005,25.82872726,202.11,202.03,6.4161]
[1731208018205,25.82872726,202.09,202.03,6.4161]
[1731208018393,25.82872726,202.12,202.05,25.82872726]
[1731208018595,5.1549484,202.26,202.11,25.82872726]
[1731208018803,0.2,202.24,202.03,6.4161]
[1731208018988,0.2,202.22,202.03,6.4161]
[1731208019495,0.2,202.22,202.04,20.0]
[1731208019896,25.82872726,202.11,202.06,20.0]
[1731208020212,25.82872726,202.11,202.04,45.82872726]
[1731208020406,25.82872726,202.12,202.05,25.82872726]
[1731208020617,25.82872726,202.12,202.06,25.82872726]
[1731208020789,25.82872726,202.12,202.05,25.82872726]
[1731208020992,25.82872726,202.16,202.09,25.82872726]
[1731208021403,25.82872726,202.15,202.08,25.82872726]
[1731208022193,25.82872726,202.14,202.08,25.82872726]
[1731208022499,25.82872726,202.15,202.08,25.82872726]
[1731208023912,25.82872726,202.16,202.09,25.82872726]
[1731208024712,25.82872726,202.15,202.09,20.0]
[1731208025119,23.776884,202.19,202.09,20.0]
[1731208025120,25.82872726,202.16,202.09,45.82872726]
[1731208025413,25.82872726,202.15,202.08,25.82872726]
[1731208025592,25.82872726,202.14,202.09,20.0]
[1731208025990,25.82872726,202.15,202.09,20.0]
[1731208026409,25.82872726,202.14,202.09,20.0]
[1731208026614,25.82872726,202.14,202.08,20.0]
[1731208026809,25.82872726,202.14,202.07,25.82872726]
[1731208026810,25.82872726,202.11,202.04,45.82872726]
[1731208027017,25.82872726,202.08,202.03,6.4161]
[1731208027525,25.82872726,202.04,202.03,6.4161]
[1731208027690,25.82872726,202.05,202.03,6.4161]
[1731208029713,25.82872726,202.1,202.03,32.24482726]
[1731208029919,25.82872726,202.1,202.04,25.82872726]
[1731208030225,25.82872726,202.12,202.05,25.82872726]
[1731208030423,25.82872726,202.13,202.06,25.82872726]
[1731208030892,25.82872726,202.14,202.04,20.0]
[1731208031096,25.82872726,202.14,202.08,25.82872726]
[1731208031497,25.82872726,202.18,202.11,25.82872726]
[1731208031700,5.05929689,202.2,202.04,20.2]
[1731208031701,25.82872726,202.16,202.09,25.82872726]
[1731208031910,25.82872726,202.15,202.09,20.0]
[1731208032115,25.82872726,202.14,202.09,20.0]
[1731208032505,25.82872726,202.15,202.08,25.82872726]
[1731208032708,25.82872726,202.15,202.09,45.82872726]
[1731208032911,25.82872726,202.18,202.12,6.4161]
[1731208033210,25.82872726,202.19,202.12,32.24482726]
[1731208033409,25.82872726,202.19,202.13,25.82872726]
[1731208033608,25.82872726,202.19,202.12,32.24482726]
[1731208033814,25.82872726,202.17,202.13,20.0]
[1731208034019,25.82872726,202.16,202.12,6.4161]
[1731208034917,25.82872726,202.13,202.12,6.4161]
[1731208035222,25.82872726,202.13,202.07,6.4161]
[1731208035519,25.82872726,202.09,202.07,6.4161]
[1731208035709,25.82872726,202.08,202.07,6.4161]
[1731208035910,25.82872726,202.08,202.02,6.184]
[1731208036307,15.8581,202.18,202.02,6.184]
[1731208036508,25.82872726,202.14,202.02,6.184]
[1731208036709,25.82872726,202.1,202.04,25.82872726]
[1731208036927,25.82872726,202.1,202.03,25.82872726]
[1731208037109,25.82872726,202.1,202.04,20.0]
[1731208037303,23.876884,202.17,202.02,6.184]
[1731208037504,25.82872726,202.07,202.02,6.184]
[1731208037706,25.82872726,202.06,202.02,6.184]
[1731208037903,25.82872726,202.04,202.02,6.184]
[1731208038519,25.82872726,202.03,202.02,6.184]
[1731208041329,25.82872726,202.05,202.02,6.184]
[1731208041528,25.82872726,202.06,202.02,6.184]
[1731208041825,25.82872726,202.08,202.02,32.01272726]
[1731208042025,25.82872726,202.08,202.02,6.184]
[1731208042324,0.1,202.19,202.02,6.184]
[1731208042325,0.1,202.19,202.04,25.82872726]
[1731208042531,25.82872726,202.12,202.05,25.82872726]
[1731208042712,25.82872726,202.1,202.03,25.82872726]
[1731208043214,25.82872726,202.12,202.05,45.82872726]
[1731208043410,25.82872726,202.13,202.06,25.82872726]
[1731208043717,25.82872726,202.15,202.09,20.0]
[1731208043914,0.2254,202.22,202.09,20.0]
[1731208043915,25.82872726,202.16,202.09,45.82872726]
[1731208044714,25.82872726,202.17,202.1,25.82872726]
[1731208044918,25.82872726,202.16,202.09,25.82872726]
[1731208045528,25.82872726,202.17,202.1,25.82872726]
[1731208046132,25.82872726,202.15,202.08,25.82872726]
[1731208046321,25.82872726,202.2,202.06,20.0]
[1731208046322,25.82872726,202.13,202.06,20.0]
[1731208046521,25.82872726,202.12,202.06,20.0]
[1731208047226,25.82872726,202.13,202.06,45.82872726]
[1731208047611,25.82872726,202.16,202.09,25.82872726]
[1731208047813,25.82872726,202.17,202.09,25.82872726]
[1731208048011,25.82872726,202.15,202.08,25.82872726]
[1731208048219,25.82872726,202.15,202.09,20.0]
[1731208048756,25.82872726,202.17,202.1,25.82872726]
[1731208049034,25.82872726,202.2,202.13,25.82872726]
[1731208049209,25.82872726,202.18,202.12,20.0]
[1731208049405,5.0574105,202.23,202.11,32.01272726]
[1731208049406,25.82872726,202.17,202.11,6.184]
[1731208049606,5.0574105,202.23,202.11,6.184]
[1731208049607,25.82872726,202.14,202.11,6.184]
[1731208049832,5.1574105,202.23,202.11,6.184]
[1731208049833,25.82872726,202.12,202.11,6.184]
[1731208050218,25.82872726,202.12,202.06,20.0]
[1731208050425,25.82872726,202.1,202.06,26.184]
[1731208050824,25.82872726,202.11,202.06,26.184]
[1731208051208,25.82872726,202.09,202.06,26.184]
[1731208051425,25.82872726,202.08,202.06,6.184]
[1731208051637,25.82872726,202.07,201.99,21.9924]
[1731208051831,25.82872726,202.03,201.99,21.9924]
[1731208052338,25.82872726,202.04,201.99,21.9924]
[1731208053326,25.82872726,202.04,202.0,20.0]
[1731208054214,25.82872726,202.03,201.99,21.9924]
[1731208054448,25.82872726,202.0,201.93,6.184]
[1731208054731,25.82872726,201.95,201.93,6.184]
[1731208054917,25.82872726,201.94,201.93,6.184]
[1731208055708,25.43284444,201.94,201.93,6.184]
[1731208056535,0.1,202.03,201.93,6.184]
[1731208056834,25.82872726,201.95,201.93,6.184]
[1731208057922,25.82872726,201.96,201.93,6.184]
[1731208058236,25.82872726,201.97,201.93,6.184]
[1731208058711,25.82872726,201.98,201.93,6.184]
[1731208058910,25.82872726,201.99,201.93,6.184]
[1731208059121,25.82872726,202.01,201.96,20.0]
[1731208059321,25.82872726,201.99,201.93,6.184]
[1731208059524,25.82872726,201.99,201.94,20.0]
[1731208059813,25.82872726,201.96,201.93,6.184]
[1731208061038,25.82872726,201.95,201.93,6.184]
[1731208062629,25.82872726,201.96,201.93,6.184]
[1731208062827,25.82872726,201.98,201.93,6.184]
[1731208063142,25.82872726,201.97,201.93,6.184]
[1731208064321,25.82872726,201.97,201.84,0.2]
[1731208064322,25.82872726,201.96,201.89,25.82872726]
[1731208064521,25.82872726,201.96,201.9,20.0]
[1731208065528,5.05622609,202.03,201.87,22.1441]
[1731208065529,25.82872726,201.95,201.88,25.82872726]
[1731208065725,25.82872726,201.95,201.89,20.0]
[1731208066130,25.82872726,201.94,201.88,20.0]
[1731208066828,25.82872726,201.94,201.87,47.97282726]
[1731208067340,25.82872726,201.98,201.9,25.82872726]
[1731208067643,25.82872726,201.96,201.89,25.82872726]
[1731208067840,25.82872726,201.95,201.88,45.82872726]
[1731208068549,25.82872726,201.95,201.87,22.1441]
[1731208068550,25.82872726,201.91,201.87,22.1441]
[1731208069746,25.82872726,201.89,201.82,41.14232726]
[1731208069945,25.82872726,201.87,201.82,21.6493]
[1731208071242,25.82872726,201.85,201.82,21.6493]
[1731208071549,25.82872726,201.83,201.77,21.6493]
[1731208072152,25.82872726,201.84,201.77,47.47802726]
[1731208075337,25.82872726,201.78,201.77,6.3357]
[1731208075535,25.82872726,201.78,201.73,6.0545]
[1731208075739,25.82872726,201.81,201.74,25.82872726]
[1731208075946,25.82872726,201.82,201.75,25.82872726]
[1731208076836,25.82872726,201.84,201.77,25.82872726]
[1731208077241,25.82872726,201.83,201.77,20.0]
[1731208077629,25.82872726,201.82,201.77,20.0]
[1731208077838,25.82872726,201.81,201.74,45.82872726]
[1731208078140,25.82872726,201.83,201.77,25.82872726]
[1731208078440,5.15301227,201.88,201.78,20.0]
[1731208078441,25.82872726,201.84,201.78,20.0]
[1731208080039,25.82872726,201.84,201.76,25.82872726]
[1731208080248,25.82872726,201.83,201.77,20.0]
[1731208080952,25.82872726,201.84,201.77,25.82872726]
[1731208081135,25.82872726,201.84,201.78,20.0]
[1731208081331,25.82872726,201.83,201.78,20.0]
[1731208081536,25.82872726,201.83,201.73,6.0545]
[1731208081537,25.82872726,201.79,201.73,6.0545]
[1731208081732,25.82872726,201.8,201.73,6.0545]
[1731208082242,25.82872726,201.79,201.73,6.0545]
[1731208082429,25.82872726,201.78,201.73,6.0545]
[1731208082635,23.776884,201.89,201.73,6.0545]
[1731208082636,25.82872726,201.75,201.73,6.0545]
[1731208082857,25.82872726,201.74,201.73,6.0545]
[1731208083153,25.82872726,201.74,201.63,4.943]
[1731208083154,25.82872726,201.74,201.68,6.0545]
[1731208083324,25.82872726,201.7,201.68,6.0545]
[1731208083727,25.82872726,201.71,201.68,6.0545]
[1731208084331,25.82872726,201.72,201.68,6.0545]
[1731208084548,25.82872726,201.73,201.69,20.0]
[1731208085048,25.82872726,201.73,201.68,6.0545]
[1731208085253,25.82872726,201.72,201.69,20.0]
[1731208085635,25.82872726,201.73,201.69,20.0]
[1731208086150,25.82872726,201.74,201.69,20.0]
[1731208086361,5.13706481,201.9,201.74,20.0]
[1731208086555,25.82872726,201.83,201.76,20.0]
[1731208086736,25.82872726,201.82,201.76,20.0]
[1731208087042,25.82872726,201.81,201.75,20.0]
[1731208087244,30.96579207,201.9,201.73,25.82872726]
[1731208087245,25.82872726,201.8,201.74,20.0]
[1731208087451,25.82872726,201.81,201.74,20.0]
[1731208087629,25.82872726,201.8,201.73,25.82872726]
[1731208087828,25.82872726,201.79,201.72,25.82872726]
[1731208088028,25.82872726,201.74,201.7,6.0545]
[1731208088249,25.82872726,201.71,201.7,6.0545]
[1731208088849,25.82872726,201.72,201.7,6.0545]
[1731208089043,25.82872726,201.71,201.7,6.0545]
[1731208089429,25.82872726,201.71,201.65,6.0545]
[1731208089650,25.82872726,201.67,201.61,15.9856]
[1731208089830,25.82872726,201.65,201.61,15.9856]
[1731208090236,25.82872726,201.66,201.61,15.9856]
[1731208090737,25.82872726,201.67,201.61,15.9856]
[1731208090940,25.82872726,201.66,201.61,15.9856]
[1731208091139,5.33899066,201.77,201.61,15.9856]
[1731208091140,25.82872726,201.67,201.61,15.9856]
[1731208091652,25.82872726,201.68,201.61,41.81432726]
[1731208093558,25.82872726,201.67,201.61,15.9856]
[1731208094643,25.82872726,201.68,201.61,41.81432726]
[1731208094960,25.82872726,201.67,201.61,15.9856]
[1731208095842,0.1,201.76,201.61,15.9856]
[1731208095843,25.82872726,201.64,201.61,15.9856]
[1731208096156,25.82872726,201.67,201.61,15.9856]
[1731208096458,25.82872726,201.62,201.53,6.3132]
[1731208096760,23.776884,201.69,201.53,6.4132]
[1731208096954,23.776884,201.75,201.62,25.82872726]
[1731208097341,25.82872726,201.68,201.62,40.97162726]
[1731208097853,25.82872726,201.7,201.63,25.82872726]
[1731208098063,11.16659066,201.77,201.65,25.82872726]
[1731208098064,25.82872726,201.72,201.65,25.82872726]
[1731208098450,25.82872726,201.7,201.64,6.3132]
[1731208098650,25.82872726,201.69,201.64,6.3132]
[1731208099546,25.82872726,201.7,201.64,6.3132]
[1731208099875,25.82872726,201.69,201.64,6.3132]
[1731208100460,25.82872726,201.65,201.62,15.1429]
[1731208100661,25.82872726,201.66,201.62,15.1429]
[1731208100867,23.776884,201.76,201.62,15.1429]
[1731208100868,25.82872726,201.68,201.62,40.97162726]
[1731208101047,25.82872726,201.69,201.62,40.97162726]
[1731208101443,25.82872726,201.68,201.62,40.97162726]
[1731208102253,25.82872726,201.69,201.62,40.97162726]
[1731208102453,25.82872726,201.71,201.65,25.82872726]
[1731208103771,25.82872726,201.71,201.64,25.82872726]
[1731208104077,25.82872726,201.69,201.62,40.97162726]
[1731208104370,5.13948949,201.74,201.62,40.97162726]
[1731208104371,25.82872726,201.68,201.62,40.97162726]
[1731208104543,25.82872726,201.69,201.62,40.97162726]
[1731208104748,25.82872726,201.7,201.63,25.82872726]
[1731208104946,25.82872726,201.71,201.64,25.82872726]
[1731208105170,25.82872726,201.7,201.63,25.82872726]
[1731208105366,25.82872726,201.69,201.62,40.97162726]
[1731208106548,25.82872726,201.72,201.66,25.82872726]
[1731208106782,25.82872726,201.73,201.66,25.82872726]
[1731208107068,30.96821675,201.74,201.67,25.82872726]
[1731208107864,25.82872726,201.72,201.66,25.82872726]
[1731208108060,25.82872726,201.71,201.64,25.82872726]
[1731208108260,25.82872726,201.73,201.66,25.82872726]
[1731208108775,30.96821675,201.74,201.67,25.82872726]
[1731208108974,30.96821675,201.74,201.62,18.80879251]
[1731208108975,25.82872726,201.72,201.65,25.82872726]
[1731208109152,30.96821675,201.74,201.67,25.82872726]
[1731208110971,5.13948949,201.74,201.68,32.13172726]
[1731208111270,25.82872726,201.76,201.68,32.13172726]
[1731208111463,15.5814,201.87,201.73,16.2039119]
[1731208111766,16.2039119,201.78,201.72,16.6281]
[1731208111975,16.2039119,201.76,201.72,16.6281]
[1731208112269,16.2039119,201.78,201.72,16.6281]
[1731208112956,16.2039119,201.77,201.72,16.6281]
[1731208113468,25.92765847,201.74,201.68,6.303]
[1731208113967,25.92765847,201.75,201.68,32.23065847]
[1731208114155,25.92765847,201.76,201.69,25.92765847]
[1731208114756,25.92765847,201.78,201.71,25.92765847]
[1731208115559,25.92765847,201.8,201.73,25.92765847]
[1731208116478,25.92765847,201.79,201.72,25.92765847]
[1731208117677,25.92765847,201.78,201.7,25.92765847]
[1731208117972,25.92765847,201.77,201.7,25.92765847]
[1731208118481,25.92765847,201.78,201.7,25.92765847]
[1731208119174,25.92765847,201.79,201.72,25.92765847]
[1731208119473,25.92765847,201.81,201.74,25.92765847]
[1731208120266,25.92765847,201.83,201.76,25.92765847]
[1731208121458,25.92765847,201.82,201.75,25.92765847]
[1731208122876,25.92765847,201.82,201.76,25.92765847]
[1731208124461,25.92765847,201.82,201.75,25.92765847]
[1731208125360,25.92765847,201.81,201.74,25.92765847]
[1731208126077,25.92765847,201.82,201.75,25.92765847]
[1731208126963,25.92765847,201.83,201.76,25.92765847]
[1731208127164,25.92765847,201.85,201.78,25.92765847]
[1731208127376,25.92765847,201.84,201.77,32.55675847]
[1731208127877,25.92765847,201.85,201.78,25.92765847]
[1731208128488,25.92765847,201.84,201.77,32.55675847]
[1731208130183,25.92765847,201.78,201.71,25.92765847]
[1731208130481,43.776884,201.89,201.67,6.6291]
[1731208130482,25.92765847,201.79,201.72,25.92765847]
[1731208130680,25.92765847,201.77,201.7,25.92765847]
[1731208131262,25.92765847,201.79,201.72,25.92765847]
[1731208131467,25.92765847,201.8,201.73,25.92765847]
[1731208131671,25.92765847,201.79,201.71,25.92765847]
[1731208132088,25.92765847,201.79,201.72,25.92765847]
[1731208132681,25.92765847,201.79,201.71,25.92765847]
[1731208133487,16.19946034,201.79,201.71,16.19946034]
[1731208133673,16.19946034,201.79,201.72,16.19946034]
[1731208133869,16.19946034,201.78,201.71,16.19946034]
[1731208134074,16.19946034,201.77,201.69,16.19946034]
[1731208134781,16.19946034,201.77,201.7,16.19946034]
[1731208134983,16.19946034,201.77,201.69,16.19946034]
[1731208135781,16.19946034,201.75,201.68,16.19946034]
[1731208136088,16.5133,201.83,201.69,16.19946034]
[1731208136089,16.19946034,201.76,201.69,16.19946034]
[1731208136387,16.19946034,201.78,201.7,16.19946034]
[1731208136569,16.19946034,201.8,201.73,16.19946034]
[1731208136770,16.19946034,201.81,201.73,16.19946034]
[1731208137017,16.19946034,201.82,201.74,16.19946034]
[1731208137174,16.19946034,201.83,201.75,16.19946034]
[1731208137695,16.19946034,201.82,201.75,16.19946034]
[1731208138974,16.19946034,201.82,201.74,16.19946034]
[1731208139703,16.19946034,201.83,201.75,16.19946034]
[1731208140301,16.19946034,201.84,201.77,16.19946034]
[1731208140800,16.19946034,201.83,201.75,32.12976034]
[1731208140978,16.19946034,201.83,201.76,16.19946034]
[1731208141305,16.19946034,201.84,201.77,16.19946034]
[1731208141884,5.14162634,201.9,201.82,16.19946034]
[1731208142185,16.19946034,201.88,201.81,16.19946034]
[1731208142499,15.2927,201.95,201.79,16.19946034]
[1731208142500,16.19946034,201.87,201.79,16.19946034]
[1731208142681,16.19946034,201.85,201.78,16.19946034]
[1731208143076,16.19946034,201.85,201.77,16.19946034]
[1731208143393,16.19946034,201.88,201.81,16.19946034]
[1731208144189,16.19946034,201.87,201.8,16.19946034]